[Event "Early-Titled-Tuesday-Blitz-September-05-2023"]
[Site "Chess.com"]
[Date "2023.09.05"]
[Round "4"]
[White "GMWSO"]
[Black "Mikedannnn"]
[Result "1-0"]
[WhiteElo "3063"]
[BlackElo "2618"]
[TimeControl "180+1"]
[EndTime "8:36:42 PDT"]
[Termination "GMWSO won by resignation"]

1. e3 {[%clk 0:02:48.6]} 1... e5 {[%clk 0:02:53.6]} 2. b3 {[%clk 0:02:49.5]}
2... g6 {[%clk 0:02:50.7]} 3. Bb2 {[%clk 0:02:49.5]} 3... Bg7 {[%clk 0:02:50.7]}
4. d4 {[%clk 0:02:45.7]} 4... exd4 {[%clk 0:02:38.3]} 5. Nf3 {[%clk 0:02:45.7]}
5... Nf6 {[%clk 0:02:30.2]} 6. Bxd4 {[%clk 0:02:38.7]} 6... O-O {[%clk
0:02:29.2]} 7. c4 {[%clk 0:02:35.7]} 7... Nc6 {[%clk 0:02:24]} 8. Bb2 {[%clk
0:02:35.6]} 8... d5 {[%clk 0:02:21.6]} 9. Nbd2 {[%clk 0:02:27.9]} 9... Re8
{[%clk 0:01:56.3]} 10. Be2 {[%clk 0:02:12.4]} 10... dxc4 {[%clk 0:01:45.6]} 11.
Bxc4 {[%clk 0:02:10.3]} 11... Be6 {[%clk 0:01:44.3]} 12. Bxe6 {[%clk 0:01:54.9]}
12... Rxe6 {[%clk 0:01:43.6]} 13. O-O {[%clk 0:01:55.8]} 13... Qd3 {[%clk
0:01:20.8]} 14. Nc4 {[%clk 0:01:40.7]} 14... Rd8 {[%clk 0:01:13.3]} 15. Nd4
{[%clk 0:01:24.5]} 15... Qxd1 {[%clk 0:01:09.5]} 16. Raxd1 {[%clk 0:01:25.4]}
16... Nxd4 {[%clk 0:01:07.3]} 17. Bxd4 {[%clk 0:01:26.3]} 17... Ree8 {[%clk
0:00:51.6]} 18. Na5 {[%clk 0:01:22.4]} 18... c5 {[%clk 0:00:32.9]} 19. Bxf6
{[%clk 0:01:15.7]} 19... Bxf6 {[%clk 0:00:32.7]} 20. Nxb7 {[%clk 0:01:15.4]}
20... Rxd1 {[%clk 0:00:31.4]} 21. Rxd1 {[%clk 0:01:16.3]} 21... Rc8 {[%clk
0:00:25.8]} 22. Na5 {[%clk 0:01:12.5]} 22... Bc3 {[%clk 0:00:21.6]} 23. Nc4
{[%clk 0:01:11.7]} 23... h5 {[%clk 0:00:21.1]} 24. Kf1 {[%clk 0:01:09.8]} 24...
Rc6 {[%clk 0:00:21]} 25. Ke2 {[%clk 0:01:09.1]} 25... h4 {[%clk 0:00:19.8]} 26.
Rd8+ {[%clk 0:01:07]} 26... Kg7 {[%clk 0:00:19.7]} 27. Rd6 {[%clk 0:01:06.6]}
27... Rc7 {[%clk 0:00:17.7]} 28. f4 {[%clk 0:01:05.7]} 28... Bf6 {[%clk
0:00:16.7]} 29. Kf3 {[%clk 0:01:04.2]} 29... Be7 {[%clk 0:00:16.7]} 30. Rd5
{[%clk 0:01:03.5]} 30... Rc6 {[%clk 0:00:14.8]} 31. Rd7 {[%clk 0:01:03.1]} 31...
Bf6 {[%clk 0:00:12.7]} 32. Rxa7 {[%clk 0:01:02.6]} 1-0

[Event "Early-Titled-Tuesday-Blitz-September-05-2023"]
[Site "Chess.com"]
[Date "2023.09.05"]
[Round "4"]
[White "S-Fazulyanov"]
[Black "CraiggoryC"]
[Result "1-0"]
[WhiteElo "2463"]
[BlackElo "2198"]
[TimeControl "180+1"]
[EndTime "8:36:46 PDT"]
[Termination "S-Fazulyanov won on time"]

1. e4 {[%clk 0:03:00]} 1... e6 {[%clk 0:03:00.1]} 2. d4 {[%clk 0:03:00.2]} 2...
d5 {[%clk 0:03:00.4]} 3. Bd3 {[%clk 0:03:00]} 3... dxe4 {[%clk 0:03:00.3]} 4.
Bxe4 {[%clk 0:03:00.9]} 4... Nf6 {[%clk 0:03:00.8]} 5. Bf3 {[%clk 0:03:01.8]}
5... c5 {[%clk 0:03:01.5]} 6. Ne2 {[%clk 0:03:01.9]} 6... Nc6 {[%clk 0:03:02]}
7. Be3 {[%clk 0:02:59.8]} 7... cxd4 {[%clk 0:03:02.2]} 8. Nxd4 {[%clk 0:03:00]}
8... Ne5 {[%clk 0:03:02.4]} 9. Be2 {[%clk 0:02:58.2]} 9... Bd7 {[%clk
0:02:56.5]} 10. O-O {[%clk 0:02:57.6]} 10... Be7 {[%clk 0:02:54]} 11. c4 {[%clk
0:02:55]} 11... O-O {[%clk 0:02:49.2]} 12. Nc3 {[%clk 0:02:54.5]} 12... Rc8
{[%clk 0:02:48.6]} 13. Qb3 {[%clk 0:02:50.7]} 13... a6 {[%clk 0:02:09.6]} 14.
Qxb7 {[%clk 0:02:41.2]} 14... Nxc4 {[%clk 0:02:09.3]} 15. Bxc4 {[%clk
0:02:37.7]} 15... Rxc4 {[%clk 0:02:10.2]} 16. Qxa6 {[%clk 0:02:35.7]} 16... Rb4
{[%clk 0:02:02]} 17. Rab1 {[%clk 0:02:27]} 17... Bc8 {[%clk 0:01:50.9]} 18. Qa7
{[%clk 0:02:20.3]} 18... Rb7 {[%clk 0:01:13.9]} 19. Qa8 {[%clk 0:02:19.1]} 19...
Ng4 {[%clk 0:00:49.1]} 20. Nc6 {[%clk 0:01:49.8]} 20... Qc7 {[%clk 0:00:43.5]}
21. Nxe7+ {[%clk 0:01:48.6]} 21... Qxe7 {[%clk 0:00:44.1]} 22. Bf4 {[%clk
0:01:42.4]} 22... e5 {[%clk 0:00:34.1]} 23. Nd5 {[%clk 0:00:55]} 23... Qc5
{[%clk 0:00:21.7]} 24. Rbc1 {[%clk 0:00:48.9]} 24... Qxd5 {[%clk 0:00:11.9]} 25.
Rxc8 {[%clk 0:00:46.9]} 1-0

[Event "Early-Titled-Tuesday-Blitz-September-05-2023"]
[Site "Chess.com"]
[Date "2023.09.05"]
[Round "4"]
[White "angryspacevoid"]
[Black "Anton_Demchenko"]
[Result "0-1"]
[WhiteElo "2601"]
[BlackElo "2923"]
[TimeControl "180+1"]
[EndTime "8:36:47 PDT"]
[Termination "Anton_Demchenko won by resignation"]

1. e4 {[%clk 0:03:00.9]} 1... e5 {[%clk 0:02:57.6]} 2. Nf3 {[%clk 0:02:58.4]}
2... Nc6 {[%clk 0:02:58.1]} 3. d4 {[%clk 0:02:59.1]} 3... exd4 {[%clk
0:02:58.2]} 4. Nxd4 {[%clk 0:03:00]} 4... Bc5 {[%clk 0:02:58.6]} 5. Nb3 {[%clk
0:02:59.1]} 5... Bb6 {[%clk 0:02:58.8]} 6. Nc3 {[%clk 0:02:58.8]} 6... d6 {[%clk
0:02:58.8]} 7. Qe2 {[%clk 0:02:58.6]} 7... a5 {[%clk 0:02:59.4]} 8. Be3 {[%clk
0:02:46.6]} 8... Bxe3 {[%clk 0:02:58.6]} 9. Qxe3 {[%clk 0:02:46.8]} 9... a4
{[%clk 0:02:59.5]} 10. Nd4 {[%clk 0:02:46.7]} 10... a3 {[%clk 0:03:00.4]} 11.
Bc4 {[%clk 0:02:30.5]} 11... axb2 {[%clk 0:02:54.7]} 12. Rb1 {[%clk 0:02:30.2]}
12... Nf6 {[%clk 0:02:54.5]} 13. Rxb2 {[%clk 0:02:27]} 13... O-O {[%clk
0:02:53.6]} 14. O-O {[%clk 0:02:26.6]} 14... Ng4 {[%clk 0:02:41.8]} 15. Qd2
{[%clk 0:02:24.7]} 15... Nge5 {[%clk 0:02:31.7]} 16. Be2 {[%clk 0:02:23.6]}
16... Na5 {[%clk 0:02:30.7]} 17. Rbb1 {[%clk 0:02:16.1]} 17... b6 {[%clk
0:02:30.4]} 18. Nd5 {[%clk 0:02:12.3]} 18... Be6 {[%clk 0:02:15.6]} 19. f4
{[%clk 0:01:57]} 19... Nd7 {[%clk 0:02:15.1]} 20. Ne3 {[%clk 0:01:46]} 20... Nc5
{[%clk 0:01:57.3]} 21. Bf3 {[%clk 0:01:40.6]} 21... Bxa2 {[%clk 0:01:56.3]} 22.
Ra1 {[%clk 0:01:38.7]} 22... Nc4 {[%clk 0:01:55.7]} 23. Qc3 {[%clk 0:01:20.7]}
23... Ra3 {[%clk 0:01:37]} 24. Nb3 {[%clk 0:01:13.8]} 24... Nxe3 {[%clk
0:01:15]} 25. Qxe3 {[%clk 0:01:14.7]} 25... Qa8 {[%clk 0:01:10.9]} 26. e5 {[%clk
0:01:04]} 26... Qa7 {[%clk 0:01:06.7]} 27. Bd5 {[%clk 0:00:58.6]} 27... Bxb3
{[%clk 0:00:44.8]} 28. Rxa3 {[%clk 0:00:54.8]} 28... Qxa3 {[%clk 0:00:45.7]} 29.
cxb3 {[%clk 0:00:51.1]} 29... Qb4 {[%clk 0:00:44.8]} 30. f5 {[%clk 0:00:35.8]}
30... dxe5 {[%clk 0:00:43.8]} 31. Qxe5 {[%clk 0:00:32.5]} 31... Nd7 {[%clk
0:00:44.1]} 32. Qxc7 {[%clk 0:00:29.7]} 32... Qd4+ {[%clk 0:00:43.9]} 33. Kh1
{[%clk 0:00:25.6]} 33... Qxd5 {[%clk 0:00:44.6]} 0-1

[Event "Early-Titled-Tuesday-Blitz-September-05-2023"]
[Site "Chess.com"]
[Date "2023.09.05"]
[Round "4"]
[White "LuisFSiles"]
[Black "OldGuysRule1956"]
[Result "1-0"]
[WhiteElo "2361"]
[BlackElo "2177"]
[TimeControl "180+1"]
[EndTime "8:36:53 PDT"]
[Termination "LuisFSiles won by checkmate"]

1. e4 {[%clk 0:03:00.9]} 1... d6 {[%clk 0:02:54.5]} 2. Nc3 {[%clk 0:03:00.2]}
2... Nf6 {[%clk 0:02:54.1]} 3. f4 {[%clk 0:03:00.3]} 3... c6 {[%clk 0:02:52.4]}
4. Nf3 {[%clk 0:02:59.6]} 4... Bg4 {[%clk 0:02:48.6]} 5. h3 {[%clk 0:02:58.5]}
5... Bxf3 {[%clk 0:02:48.2]} 6. Qxf3 {[%clk 0:02:59.4]} 6... e5 {[%clk
0:02:46.9]} 7. Bc4 {[%clk 0:02:57.3]} 7... Be7 {[%clk 0:02:44.8]} 8. d3 {[%clk
0:02:56.6]} 8... Nbd7 {[%clk 0:02:44.4]} 9. O-O {[%clk 0:02:54.3]} 9... b5
{[%clk 0:02:35.8]} 10. Bb3 {[%clk 0:02:53.9]} 10... Nc5 {[%clk 0:02:31.3]} 11.
Be3 {[%clk 0:02:39]} 11... Nxb3 {[%clk 0:02:19.5]} 12. axb3 {[%clk 0:02:39.9]}
12... Qc7 {[%clk 0:02:19.1]} 13. g4 {[%clk 0:02:21.7]} 13... exf4 {[%clk
0:02:04.1]} 14. Bxf4 {[%clk 0:02:03]} 14... O-O {[%clk 0:02:03.3]} 15. g5 {[%clk
0:01:47.3]} 15... Nd7 {[%clk 0:02:02.5]} 16. h4 {[%clk 0:01:43.4]} 16... Ne5
{[%clk 0:02:01.9]} 17. Qg3 {[%clk 0:01:40.8]} 17... b4 {[%clk 0:01:54.7]} 18.
Ne2 {[%clk 0:01:36.5]} 18... Ng6 {[%clk 0:01:49.4]} 19. Be3 {[%clk 0:01:33.1]}
19... a5 {[%clk 0:01:39.3]} 20. Nd4 {[%clk 0:01:32.3]} 20... Qd7 {[%clk
0:01:15.1]} 21. Nf5 {[%clk 0:01:30.7]} 21... Bd8 {[%clk 0:01:13.2]} 22. Bd4
{[%clk 0:01:22.4]} 22... f6 {[%clk 0:00:55.7]} 23. gxf6 {[%clk 0:00:58.9]} 23...
Bxf6 {[%clk 0:00:49.7]} 24. Nh6+ {[%clk 0:00:52.7]} 24... Kh8 {[%clk 0:00:43.7]}
25. Bxf6 {[%clk 0:00:47.7]} 25... gxf6 {[%clk 0:00:42.2]} 26. Rf5 {[%clk
0:00:37]} 26... Ne5 {[%clk 0:00:34]} 27. Kh1 {[%clk 0:00:35.6]} 27... Qg7 {[%clk
0:00:30]} 28. Rg1 {[%clk 0:00:34.3]} 28... Qxg3 {[%clk 0:00:29]} 29. Rxg3 {[%clk
0:00:35.2]} 29... Ra7 {[%clk 0:00:29.4]} 30. Rxf6 {[%clk 0:00:32.7]} 30... Rd7
{[%clk 0:00:23.3]} 31. Rxf8# {[%clk 0:00:31.4]} 1-0

[Event "Early-Titled-Tuesday-Blitz-September-05-2023"]
[Site "Chess.com"]
[Date "2023.09.05"]
[Round "4"]
[White "Fengwi"]
[Black "Darius321"]
[Result "1-0"]
[WhiteElo "2412"]
[BlackElo "2294"]
[TimeControl "180+1"]
[EndTime "8:36:53 PDT"]
[Termination "Fengwi won by resignation"]

1. Nf3 {[%clk 0:03:00.9]} 1... d5 {[%clk 0:02:58.4]} 2. b3 {[%clk 0:02:56.7]}
2... Bf5 {[%clk 0:02:57.6]} 3. Bb2 {[%clk 0:02:56.4]} 3... e6 {[%clk 0:02:56.9]}
4. g3 {[%clk 0:02:56.1]} 4... Nf6 {[%clk 0:02:57.1]} 5. Bg2 {[%clk 0:02:55.5]}
5... Be7 {[%clk 0:02:57.3]} 6. O-O {[%clk 0:02:55.8]} 6... h6 {[%clk 0:02:57.6]}
7. d3 {[%clk 0:02:56]} 7... O-O {[%clk 0:02:57.7]} 8. Nbd2 {[%clk 0:02:56.2]}
8... c5 {[%clk 0:02:55.9]} 9. Ne5 {[%clk 0:02:54.5]} 9... Nc6 {[%clk 0:02:55.2]}
10. Nxc6 {[%clk 0:02:52.8]} 10... bxc6 {[%clk 0:02:56]} 11. e4 {[%clk
0:02:52.2]} 11... Bg6 {[%clk 0:02:51.8]} 12. Qe2 {[%clk 0:02:51]} 12... Nd7
{[%clk 0:02:43.6]} 13. f4 {[%clk 0:02:46.4]} 13... d4 {[%clk 0:02:25.9]} 14.
Rae1 {[%clk 0:02:30.1]} 14... f6 {[%clk 0:02:25.5]} 15. f5 {[%clk 0:02:21.2]}
15... Bf7 {[%clk 0:02:23.9]} 16. fxe6 {[%clk 0:02:12.7]} 16... Bxe6 {[%clk
0:02:24.8]} 17. Nf3 {[%clk 0:02:08.2]} 17... Bf7 {[%clk 0:02:25.7]} 18. e5
{[%clk 0:01:33.4]} 18... Bd6 {[%clk 0:02:26.6]} 19. exd6 {[%clk 0:01:33]} 19...
Qa5 {[%clk 0:02:18.1]} 20. a4 {[%clk 0:01:23.9]} 20... Kh8 {[%clk 0:02:07.8]}
21. Qd2 {[%clk 0:01:18.2]} 21... Qb6 {[%clk 0:01:48.8]} 22. Re7 {[%clk
0:01:08.5]} 22... Rad8 {[%clk 0:01:30]} 23. Kh1 {[%clk 0:01:03.7]} 23... Bd5
{[%clk 0:01:23.5]} 24. Nh4 {[%clk 0:00:59.7]} 24... Ne5 {[%clk 0:01:15.7]} 25.
Rxe5 {[%clk 0:00:54]} 25... fxe5 {[%clk 0:01:14.8]} 26. Ng6+ {[%clk 0:00:54]}
26... Kg8 {[%clk 0:01:13.2]} 27. Rxf8+ {[%clk 0:00:49.8]} 27... Rxf8 {[%clk
0:01:12.7]} 28. Nxf8 {[%clk 0:00:49.7]} 28... Kxf8 {[%clk 0:01:03.3]} 29. Qf2+
{[%clk 0:00:48.2]} 29... Ke8 {[%clk 0:00:58.6]} 30. Qf5 {[%clk 0:00:43.8]} 30...
Qb4 {[%clk 0:00:48.2]} 31. Qxe5+ {[%clk 0:00:43]} 31... Kf8 {[%clk 0:00:45.5]}
32. d7 {[%clk 0:00:28.6]} 32... Qe1+ {[%clk 0:00:43.3]} 33. Qxe1 {[%clk
0:00:27.6]} 1-0

[Event "Early-Titled-Tuesday-Blitz-September-05-2023"]
[Site "Chess.com"]
[Date "2023.09.05"]
[Round "4"]
[White "vishwa_vijeta"]
[Black "emeli_chess"]
[Result "1-0"]
[WhiteElo "2513"]
[BlackElo "2381"]
[TimeControl "180+1"]
[EndTime "8:36:55 PDT"]
[Termination "vishwa_vijeta won by resignation"]

1. e4 {[%clk 0:02:59.5]} 1... e5 {[%clk 0:02:34]} 2. Nf3 {[%clk 0:02:59]} 2...
Nc6 {[%clk 0:02:33.6]} 3. d4 {[%clk 0:02:58.2]} 3... exd4 {[%clk 0:02:33.5]} 4.
Bc4 {[%clk 0:02:57.3]} 4... Nf6 {[%clk 0:02:31.9]} 5. Ng5 {[%clk 0:02:56.8]}
5... d5 {[%clk 0:02:20.6]} 6. exd5 {[%clk 0:02:54]} 6... Na5 {[%clk 0:02:16.2]}
7. Qxd4 {[%clk 0:02:53.5]} 7... Nxc4 {[%clk 0:02:15.6]} 8. Qxc4 {[%clk
0:02:54.4]} 8... Bd6 {[%clk 0:02:11.3]} 9. O-O {[%clk 0:02:51.8]} 9... O-O
{[%clk 0:02:09.2]} 10. Nc3 {[%clk 0:02:50.7]} 10... a6 {[%clk 0:02:05.4]} 11.
Nf3 {[%clk 0:02:48.2]} 11... b5 {[%clk 0:02:02.4]} 12. Qh4 {[%clk 0:02:47.5]}
12... b4 {[%clk 0:01:59.6]} 13. Ne4 {[%clk 0:02:45.6]} 13... Nxe4 {[%clk
0:01:54.8]} 14. Qxe4 {[%clk 0:02:44.8]} 14... Re8 {[%clk 0:01:54.7]} 15. Qd4
{[%clk 0:02:36.1]} 15... Bb7 {[%clk 0:01:53.4]} 16. Rd1 {[%clk 0:02:36]} 16...
Qe7 {[%clk 0:01:46.8]} 17. Be3 {[%clk 0:02:26.2]} 17... h6 {[%clk 0:01:36.8]}
18. c4 {[%clk 0:02:25.1]} 18... bxc3 {[%clk 0:01:34.4]} 19. bxc3 {[%clk
0:02:26]} 19... Rad8 {[%clk 0:01:25.3]} 20. c4 {[%clk 0:02:25.7]} 20... c5
{[%clk 0:01:22.8]} 21. Qd3 {[%clk 0:02:21.8]} 21... Bc8 {[%clk 0:01:18.4]} 22.
h3 {[%clk 0:02:21.3]} 22... Qf6 {[%clk 0:01:17.5]} 23. Rab1 {[%clk 0:02:18.6]}
23... Bf5 {[%clk 0:01:16.4]} 24. Qd2 {[%clk 0:02:07.7]} 24... Bxb1 {[%clk
0:01:16.1]} 25. Rxb1 {[%clk 0:02:08.6]} 25... Re4 {[%clk 0:01:11.5]} 26. Qd3
{[%clk 0:02:03.3]} 26... Rde8 {[%clk 0:01:02.7]} 27. Nd2 {[%clk 0:02:03]} 27...
Rh4 {[%clk 0:00:54.4]} 28. Rb6 {[%clk 0:01:55]} 28... Qe5 {[%clk 0:00:43.2]} 29.
Nf3 {[%clk 0:01:50.2]} 29... Qa1+ {[%clk 0:00:37.2]} 30. Rb1 {[%clk 0:01:47.9]}
30... Qxb1+ {[%clk 0:00:27.1]} 31. Qxb1 {[%clk 0:01:46.2]} 31... Rxc4 {[%clk
0:00:27.8]} 32. g3 {[%clk 0:01:45.2]} 32... Rb4 {[%clk 0:00:27.2]} 33. Qf5
{[%clk 0:01:43.7]} 33... Reb8 {[%clk 0:00:23.7]} 34. Qd7 {[%clk 0:01:43]} 34...
Bf8 {[%clk 0:00:23.8]} 35. Ne5 {[%clk 0:01:33]} 35... R4b7 {[%clk 0:00:20.8]}
36. Qf5 {[%clk 0:01:30.5]} 36... f6 {[%clk 0:00:20.3]} 37. Qe6+ {[%clk
0:01:30.2]} 37... Kh7 {[%clk 0:00:19.9]} 38. Nd7 {[%clk 0:01:30.5]} 38... Rxd7
{[%clk 0:00:16]} 39. Qxd7 {[%clk 0:01:29.9]} 39... c4 {[%clk 0:00:16]} 40. Qc7
{[%clk 0:01:29.5]} 40... Rb4 {[%clk 0:00:15.8]} 41. d6 {[%clk 0:01:29.5]} 41...
c3 {[%clk 0:00:14.8]} 42. d7 {[%clk 0:01:28.7]} 42... Be7 {[%clk 0:00:14.3]} 43.
Qxc3 {[%clk 0:01:27.7]} 1-0

[Event "Early-Titled-Tuesday-Blitz-September-05-2023"]
[Site "Chess.com"]
[Date "2023.09.05"]
[Round "4"]
[White "TigranHH"]
[Black "Gauravthegm"]
[Result "0-1"]
[WhiteElo "2238"]
[BlackElo "2424"]
[TimeControl "180+1"]
[EndTime "8:36:55 PDT"]
[Termination "Gauravthegm won by resignation"]

1. d4 {[%clk 0:02:56]} 1... d5 {[%clk 0:02:59.9]} 2. c4 {[%clk 0:02:53.2]} 2...
dxc4 {[%clk 0:03:00.2]} 3. e4 {[%clk 0:02:52]} 3... Nf6 {[%clk 0:02:56.6]} 4. e5
{[%clk 0:02:51.5]} 4... Nd5 {[%clk 0:02:56.4]} 5. Bxc4 {[%clk 0:02:52.4]} 5...
Nb6 {[%clk 0:02:56.4]} 6. Bd3 {[%clk 0:02:52.6]} 6... Nc6 {[%clk 0:02:51.8]} 7.
Ne2 {[%clk 0:02:52.7]} 7... g6 {[%clk 0:02:45.8]} 8. O-O {[%clk 0:02:47.2]} 8...
Bg7 {[%clk 0:02:46.1]} 9. Nbc3 {[%clk 0:02:47.2]} 9... O-O {[%clk 0:02:46.1]}
10. h3 {[%clk 0:02:45.2]} 10... Nxd4 {[%clk 0:02:41.3]} 11. Bf4 {[%clk
0:02:40.5]} 11... Ne6 {[%clk 0:02:28.3]} 12. Bg3 {[%clk 0:02:39.8]} 12... Nc5
{[%clk 0:02:26.5]} 13. Bc2 {[%clk 0:02:36.1]} 13... Be6 {[%clk 0:02:24.2]} 14.
Nd4 {[%clk 0:02:34.3]} 14... Bc4 {[%clk 0:02:21.4]} 15. Re1 {[%clk 0:02:34.6]}
15... Ne6 {[%clk 0:02:20.8]} 16. Nxe6 {[%clk 0:02:22.7]} 16... Bxe6 {[%clk
0:02:20.5]} 17. Qf3 {[%clk 0:02:21]} 17... c6 {[%clk 0:02:16.5]} 18. h4 {[%clk
0:02:06.1]} 18... Qc8 {[%clk 0:02:09.5]} 19. Qe2 {[%clk 0:01:52.6]} 19... Bg4
{[%clk 0:02:07.7]} 20. f3 {[%clk 0:01:51.6]} 20... Bf5 {[%clk 0:02:07.9]} 21.
Bb3 {[%clk 0:01:50.3]} 21... Be6 {[%clk 0:02:07.7]} 22. Bc2 {[%clk 0:01:50]}
22... Bc4 {[%clk 0:02:07.9]} 23. Qe4 {[%clk 0:01:42.9]} 23... Qe6 {[%clk
0:02:01.8]} 24. h5 {[%clk 0:01:40.6]} 24... Bd5 {[%clk 0:01:54.6]} 25. Qh4
{[%clk 0:01:35.9]} 25... Rad8 {[%clk 0:01:50.1]} 26. f4 {[%clk 0:01:18]} 26...
c5 {[%clk 0:01:23.8]} 27. hxg6 {[%clk 0:00:55.4]} 27... hxg6 {[%clk 0:01:20]}
28. Kf2 {[%clk 0:00:53.6]} 28... Bc6 {[%clk 0:01:17.3]} 29. Rh1 {[%clk
0:00:53.2]} 29... f5 {[%clk 0:01:10.7]} 30. exf6 {[%clk 0:00:33.9]} 30... Rd2+
{[%clk 0:01:07.1]} 31. Kf1 {[%clk 0:00:33.3]} 31... Bxg2+ {[%clk 0:01:04.3]} 32.
Kg1 {[%clk 0:00:31.5]} 32... Qxf6 {[%clk 0:00:49]} 33. Qh7+ {[%clk 0:00:29.9]}
33... Kf7 {[%clk 0:00:48.9]} 34. Rh6 {[%clk 0:00:28.7]} 34... Rxc2 {[%clk
0:00:47.1]} 0-1

[Event "Early-Titled-Tuesday-Blitz-September-05-2023"]
[Site "Chess.com"]
[Date "2023.09.05"]
[Round "4"]
[White "GoltsevDmitry2000"]
[Black "Bauman_Guy"]
[Result "0-1"]
[WhiteElo "2654"]
[BlackElo "2857"]
[TimeControl "180+1"]
[EndTime "8:36:57 PDT"]
[Termination "Bauman_Guy won by checkmate"]

1. e4 {[%clk 0:02:59.3]} 1... c5 {[%clk 0:03:00]} 2. Nf3 {[%clk 0:02:59.7]} 2...
d6 {[%clk 0:03:00.2]} 3. d4 {[%clk 0:03:00.3]} 3... Nf6 {[%clk 0:03:00.6]} 4.
Nc3 {[%clk 0:03:00.2]} 4... cxd4 {[%clk 0:03:01]} 5. Nxd4 {[%clk 0:03:01.1]}
5... a6 {[%clk 0:03:01.5]} 6. Be2 {[%clk 0:03:00.9]} 6... e5 {[%clk 0:03:01.6]}
7. Nb3 {[%clk 0:03:00.5]} 7... Be7 {[%clk 0:03:01]} 8. O-O {[%clk 0:03:00.9]}
8... O-O {[%clk 0:03:01]} 9. f4 {[%clk 0:03:01.5]} 9... b5 {[%clk 0:02:58.6]}
10. a3 {[%clk 0:03:00.5]} 10... Bb7 {[%clk 0:02:58.4]} 11. Bf3 {[%clk
0:03:00.7]} 11... Nbd7 {[%clk 0:02:58.6]} 12. Qe2 {[%clk 0:03:00.5]} 12... Rc8
{[%clk 0:02:58.1]} 13. Rd1 {[%clk 0:03:00.6]} 13... Qc7 {[%clk 0:02:57.4]} 14.
Be3 {[%clk 0:03:00.1]} 14... Nb6 {[%clk 0:02:57]} 15. Na5 {[%clk 0:02:58.2]}
15... Ba8 {[%clk 0:02:56.3]} 16. Qf2 {[%clk 0:02:57.5]} 16... Rb8 {[%clk
0:02:54.5]} 17. fxe5 {[%clk 0:02:54.4]} 17... dxe5 {[%clk 0:02:54.2]} 18. Kh1
{[%clk 0:02:49.7]} 18... Na4 {[%clk 0:02:50.5]} 19. Nxa4 {[%clk 0:02:36.7]}
19... bxa4 {[%clk 0:02:51.4]} 20. b4 {[%clk 0:02:35.5]} 20... axb3 {[%clk
0:02:51]} 21. Nxb3 {[%clk 0:02:35.9]} 21... Nxe4 {[%clk 0:02:48.2]} 22. Qf1
{[%clk 0:02:28.8]} 22... Nc3 {[%clk 0:02:45.9]} 23. Re1 {[%clk 0:02:26.3]} 23...
Nd5 {[%clk 0:02:28.9]} 24. c4 {[%clk 0:01:52.7]} 24... Nxe3 {[%clk 0:02:11.6]}
25. Rxe3 {[%clk 0:01:53.6]} 25... e4 {[%clk 0:02:11.8]} 26. Be2 {[%clk
0:01:48.1]} 26... f5 {[%clk 0:02:08.4]} 27. Rd1 {[%clk 0:01:40.7]} 27... f4
{[%clk 0:02:06]} 28. Rh3 {[%clk 0:01:36.9]} 28... f3 {[%clk 0:02:06.1]} 29. Nd4
{[%clk 0:01:36.8]} 29... fxe2 {[%clk 0:02:00.3]} 30. Qxe2 {[%clk 0:01:37.7]}
30... Qe5 {[%clk 0:01:59.8]} 31. Rh5 {[%clk 0:01:30.8]} 31... Qf6 {[%clk
0:01:48.3]} 32. Nf5 {[%clk 0:01:28.7]} 32... g6 {[%clk 0:01:38.5]} 33. Nh6+
{[%clk 0:01:07.8]} 33... Kg7 {[%clk 0:01:30.5]} 34. Rh3 {[%clk 0:01:02.8]} 34...
Qf2 {[%clk 0:01:29.9]} 35. Qxf2 {[%clk 0:00:47.3]} 35... Rxf2 {[%clk 0:01:30.8]}
36. Ng4 {[%clk 0:00:46.1]} 36... Rd2 {[%clk 0:01:27.2]} 37. Re1 {[%clk
0:00:41.1]} 37... h5 {[%clk 0:01:25.3]} 38. Ne3 {[%clk 0:00:38.9]} 38... Bg5
{[%clk 0:01:19.3]} 39. Nf1 {[%clk 0:00:31.9]} 39... Rc2 {[%clk 0:01:17.2]} 40.
Ng3 {[%clk 0:00:21.1]} 40... e3 {[%clk 0:01:11.7]} 41. Ne2 {[%clk 0:00:17.1]}
41... Rxe2 {[%clk 0:01:10.1]} 42. Rxe2 {[%clk 0:00:18]} 42... Rb1+ {[%clk
0:01:09.7]} 43. Re1 {[%clk 0:00:18.9]} 43... Rxe1# {[%clk 0:01:09.9]} 0-1

[Event "Early-Titled-Tuesday-Blitz-September-05-2023"]
[Site "Chess.com"]
[Date "2023.09.05"]
[Round "4"]
[White "aakankshachess"]
[Black "wannabe2700"]
[Result "1-0"]
[WhiteElo "2459"]
[BlackElo "2618"]
[TimeControl "180+1"]
[EndTime "8:36:58 PDT"]
[Termination "aakankshachess won by checkmate"]

1. e4 {[%clk 0:03:00.9]} 1... d5 {[%clk 0:02:59.6]} 2. exd5 {[%clk 0:03:00.1]}
2... Qxd5 {[%clk 0:03:00.5]} 3. Nc3 {[%clk 0:03:00.2]} 3... Qa5 {[%clk
0:03:00.6]} 4. d4 {[%clk 0:03:00.6]} 4... Nf6 {[%clk 0:03:00.7]} 5. Nf3 {[%clk
0:03:00.6]} 5... Bf5 {[%clk 0:02:59.9]} 6. Bc4 {[%clk 0:03:00.4]} 6... e6 {[%clk
0:02:59.9]} 7. Qe2 {[%clk 0:02:59.3]} 7... Bb4 {[%clk 0:02:58.2]} 8. Bd2 {[%clk
0:02:57.4]} 8... c6 {[%clk 0:02:33.3]} 9. O-O {[%clk 0:02:40.7]} 9... O-O {[%clk
0:02:30.3]} 10. Ne5 {[%clk 0:02:35.1]} 10... Nbd7 {[%clk 0:02:25.2]} 11. a3
{[%clk 0:02:32.3]} 11... Bxc3 {[%clk 0:02:19.7]} 12. Bxc3 {[%clk 0:02:31.4]}
12... Qc7 {[%clk 0:02:18]} 13. f4 {[%clk 0:02:08.3]} 13... Nxe5 {[%clk
0:02:09.4]} 14. fxe5 {[%clk 0:02:07.1]} 14... Nd5 {[%clk 0:02:09.4]} 15. Bd2
{[%clk 0:02:05.6]} 15... Bxc2 {[%clk 0:02:04.6]} 16. Bxd5 {[%clk 0:01:52.4]}
16... exd5 {[%clk 0:02:02.7]} 17. Bb4 {[%clk 0:01:50]} 17... Be4 {[%clk
0:01:48.6]} 18. Bxf8 {[%clk 0:01:48.5]} 18... Rxf8 {[%clk 0:01:49.5]} 19. b4
{[%clk 0:01:33]} 19... Qb6 {[%clk 0:01:48.2]} 20. Rad1 {[%clk 0:01:32.4]} 20...
Re8 {[%clk 0:01:47]} 21. Qf2 {[%clk 0:01:24]} 21... Re7 {[%clk 0:01:44.9]} 22.
h3 {[%clk 0:01:18.4]} 22... h6 {[%clk 0:01:42.2]} 23. Qf4 {[%clk 0:01:07.9]}
23... a5 {[%clk 0:01:40.9]} 24. bxa5 {[%clk 0:00:53.9]} 24... Qxa5 {[%clk
0:01:41.8]} 25. e6 {[%clk 0:00:54.3]} 25... fxe6 {[%clk 0:01:34.2]} 26. Qf8+
{[%clk 0:00:52.9]} 26... Kh7 {[%clk 0:01:34.5]} 27. Qxe7 {[%clk 0:00:53.1]}
27... Qc3 {[%clk 0:01:32]} 28. Qxe6 {[%clk 0:00:25.7]} 28... Qc2 {[%clk
0:01:31.7]} 29. Qg4 {[%clk 0:00:23.1]} 29... b5 {[%clk 0:01:22.7]} 30. Rc1
{[%clk 0:00:19.7]} 30... Qd2 {[%clk 0:01:22.4]} 31. Rxc6 {[%clk 0:00:19.5]}
31... Qxd4+ {[%clk 0:01:21.1]} 32. Kh2 {[%clk 0:00:19.9]} 32... Qd2 {[%clk
0:01:19.6]} 33. Rc8 {[%clk 0:00:17.5]} 33... Qb2 {[%clk 0:00:57.3]} 34. Rff8
{[%clk 0:00:17.2]} 34... Qe5+ {[%clk 0:00:57.6]} 35. Qg3 {[%clk 0:00:16.7]}
35... Qxg3+ {[%clk 0:00:57.7]} 36. Kxg3 {[%clk 0:00:17.6]} 36... d4 {[%clk
0:00:58.1]} 37. h4 {[%clk 0:00:17.9]} 37... d3 {[%clk 0:00:58.4]} 38. h5 {[%clk
0:00:18.4]} 38... d2 {[%clk 0:00:58.1]} 39. Rh8# {[%clk 0:00:17.8]} 1-0